Workbook

Sheet НОВЫЙ МОНИТОРИНГ Доп Май 2018
A1: Уровень 1 | B1: Уровень 2 | C1: Дата | D1: 2018-05-11 | F1: 2018-05-14 | H1: 2018-05-14 | J1: 2018-05-14 | L1: 2018-05-14 | N1: 2018-05-15 | P1: 2018-05-15 | R1: 2018-05-16 | T1: 2018-05-16 | V1: 2018-05-16 | X1: 2018-05-17 | Z1: 2018-05-17 | AB1: 2018-05-18 | AD1: 2018-05-18 | AF1: 2018-05-21 | AH1: 2018-05-21 | AJ1: 2018-05-22 | AL1: 2018-05-22 | AN1: 2018-05-22 | AP1: 2018-05-22 | AR1: 2018-05-22 | AT1: 2018-05-22 | AV1: 2018-05-22 | AX1: 2018-05-22 | AZ1: 2018-05-22 | BB1: 2018-05-22 | BD1: 2018-05-22
D2: Западный | F2: Карасунский | H2: Западный | J2: Карасунский | L2: Прикубанский | N2: Центральный | P2: Западный | R2: Карасунский | T2: Центральный | V2: Карасунский | X2: Карасунский | Z2: Карасунский | AB2: Карасунский | AD2: Прикубанский | AF2: Центральный | AH2: Прикубанский | AJ2: Карасунский | AL2: Западный | AN2: Центральный | AP2: Центральный | AR2: Карасунский | AT2: Прикубанский | AV2: Прикубанский | AX2: Центральный | AZ2: Западный | BB2: Центральный | BD2: Западный
A3: Наименование раздела в меню сайта | B3: Наименование подраздела | C3: Критерий | D3: МБОУ ДО ДЮЦ | F3: МАУ ДО МЭЦ | H3: МБОУ ДО ЦРТДЮ | J3: МБОУ ДО ДДТ "Созвездие" | L3: МБОУ ДО ЦДТ "Прикубанский" | N3: МБОУ ДО ЦТ "Содружество" | P3: МБОУ ДО ДШИ "Юбилейная" | R3: МБОУ ДО ДШИ "Родник" | T3: МБОУ ДО ЦТР "Центральный" | V3: МБОУ ДО ДШИ "Овация" | X3: МБОУ ДО ЦДТТ "Юный техник" | Z3: МБОУ ДО ДЦ "Автогородок" | AB3: МБОУ ДО ДМЦ | AD3: МБОУ ДО ЦДТТ "Парус" | AF3: МУ ДО "Малая академия" | AH3: МБОУ ДО ЦДЮТ | AJ3: МАОУ ЦО ДО "Перспектива" | AL3: МБОУ ДО ГДЮСШ | AN3: МБОУ ДО ДЮСШ № 7 | AP3: МБОУ ДО СДЮСШ № 1 | AR3: МБОУ ДО СШ № 1 | AT3: МАОУ ДО СШ № 6 | AV3: МБОУ ДО СШ № 8 | AX3: МБОУ ДО ДЮСШ № 2 | AZ3: МБОУ ДО СШ № 4 | BB3: МБОУ ДО СШ № 3 | BD3: МБОУ ДО СШ "Юбилейная"
A4: Сведения об образовательной организации | B4: Основные сведения | C4: Полное наименование образовательной организации | D4: 2 | F4: 2 | H4: 2 | J4: 2 | L4: 2 | N4: 2 | P4: 2 | R4: 2 | T4: 2 | V4: 2 | X4: 2 | Z4: 2 | AB4: 2 | AD4: 1 | AE4: Разместите полное наименование согласно п. 3 Устава | AF4: 2 | AH4: 2 | AJ4: 2 | AL4: 2 | AN4: 2 | AP4: 2 | AR4: 2 | AS4: отформатируйте таблицу | AT4: 2 | AV4: 2 | AX4: 2 | AZ4: 2 | BB4: 2 | BD4: 2
A5: Сведения об образовательной организации | B5: Основные сведения | C5: Краткое наименование образовательной организации | D5: 2 | F5: 2 | H5: 2 | J5: 2 | L5: 2 | N5: 2 | P5: 2 | R5: 2 | T5: 2 | V5: 2 | X5: 2 | Z5: 2 | AB5: 2 | AD5: 2 | AF5: 2 | AH5: 2 | AJ5: 2 | AL5: 2 | AN5: 2 | AP5: 2 | AR5: 2 | AT5: 2 | AV5: 2 | AX5: 2 | AZ5: 2 | BB5: 2 | BD5: 2
A6: Сведения об образовательной организации | B6: Основные сведения | C6: Дата создания образовательной организации | D6: 2 | F6: 2 | H6: 2 | J6: 2 | L6: 2 | N6: 2 | P6: 2 | R6: 2 | T6: 2 | V6: 2 | X6: 2 | Z6: 2 | AB6: 2 | AD6: 2 | AF6: 2 | AH6: 2 | AJ6: 2 | AL6: 2 | AN6: 2 | AP6: 2 | AR6: 2 | AT6: 2 | AV6: 2 | AX6: 2 | AZ6: 2 | BB6: 2 | BD6: 2
A7: Сведения об образовательной организации | B7: Основные сведения | C7: Учредитель (наименование, место нахождения, график работы, телефон, сайт, адрес электронной почты) | D7: 2 | F7: 2 | H7: 1 | I7: Откорректировать телефоны сотрудников ДО | J7: 1 | K7: Откорректировать телефоны сотрудников ДО | L7: 2 | N7: 1 | O7: Дополнить информацией о телефонах специалистов департамента образования | P7: 2 | R7: 2 | T7: 2 | V7: 2 | X7: 2 | Z7: 2 | AB7: 1 | AD7: 1 | AE7: Дополнить информацией о телефонах специалистов департамента образования и отдела образования округа | AF7: 2 | AG7: Откоректируйте фомилии специалистов | AH7: 2 | AJ7: 2 | AL7: 2 | AN7: 2 | AP7: 2 | AR7: 2 | AS7: Оставьте только номера телефонов. Фамилии могут меняться. | AT7: 2 | AU7: оставьте только номера специалистов | AV7: 2 | AW7: Оставьте только телефоны специалистов. Фамилии могут меняться. | AX7: 2 | AZ7: 2 | BB7: 2 | BC7: Уберите фамилии специалистов. Оставьте только номера телефонов | BD7: 2
A8: Сведения об образовательной организации | B8: Основные сведения | C8: Адрес образовательной организации и её филиалов (при наличии) | D8: 2 | F8: 2 | H8: 2 | J8: 2 | L8: 2 | N8: 2 | P8: 2 | R8: 2 | T8: 2 | V8: 2 | X8: 2 | Z8: 2 | AB8: 2 | AD8: 2 | AF8: 2 | AH8: 2 | AJ8: 2 | AL8: 2 | AN8: 2 | AP8: 2 | AR8: 2 | AT8: 2 | AV8: 2 | AX8: 2 | AZ8: 2 | BB8: 2 | BD8: 2
A9: Сведения об образовательной организации | B9: Основные сведения | C9: Режим, график работы | D9: 2 | F9: 2 | H9: 2 | J9: 2 | L9: 2 | N9: 1 | O9: Нет графика работы | P9: 2 | R9: 2 | T9: 2 | V9: 2 | X9: 2 | Z9: 2 | AB9: 1 | AD9: 1 | AE9: Разместите более полную информацию | AF9: 1 | AG9: Разместите более полную информацию | AH9: 1 | AI9: Разместите более полную информацию | AJ9: 2 | AL9: 2 | AN9: 2 | AP9: 2 | AR9: 2 | AT9: 2 | AV9: 2 | AX9: 1 | AY9: Разместите более подробную и точную информацию | AZ9: 2 | BB9: 2 | BD9: 2
A10: Сведения об образовательной организации | B10: Основные сведения | C10: Телефон, факс | D10: 2 | F10: 2 | H10: 2 | J10: 2 | L10: 2 | N10: 2 | P10: 2 | R10: 2 | T10: 2 | V10: 2 | X10: 2 | Z10: 2 | AB10: 2 | AD10: 2 | AF10: 2 | AH10: 2 | AJ10: 2 | AL10: 2 | AN10: 2 | AP10: 2 | AR10: 2 | AT10: 2 | AV10: 2 | AX10: 2 | AZ10: 2 | BB10: 2 | BD10: 2
A11: Сведения об образовательной организации | B11: Основные сведения | C11: E-mail | D11: 2 | F11: 2 | H11: 2 | J11: 2 | L11: 2 | N11: 2 | P11: 2 | R11: 1 | S11: Ошибка в адресе электронной почты | T11: 2 | V11: 2 | X11: 2 | Z11: 2 | AB11: 2 | AD11: 2 | AF11: 2 | AH11: 2 | AJ11: 2 | AL11: 2 | AN11: 2 | AP11: 2 | AR11: 2 | AT11: 2 | AV11: 2 | AX11: 2 | AZ11: 2 | BB11: 2 | BD11: 2
A12: Сведения об образовательной организации | B12: Основные сведения | C12: Схема проезда | D12: 2 | F12: 2 | H12: 2 | J12: 2 | L12: 2 | N12: 2 | P12: 2 | R12: 2 | T12: 2 | V12: 2 | X12: 2 | Z12: 2 | AB12: 2 | AD12: 2 | AF12: 2 | AH12: 2 | AJ12: 2 | AL12: 2 | AN12: 2 | AP12: 2 | AR12: 2 | AT12: 2 | AV12: 2 | AX12: 2 | AZ12: 2 | BB12: 2 | BD12: 2
A13: Сведения об образовательной организации | B13: Структура и органы управления общеобразовательной организации | C13: Наименования органов управления | D13: 2 | F13: 2 | H13: 2 | J13: 2 | L13: 2 | N13: 0 | O13: См. п 51 Устава | P13: 2 | R13: 2 | T13: 2 | V13: 2 | X13: 2 | Z13: 2 | AB13: 1 | AC13: Отредактируйте текст. Управление осуществляется колегиальными органами управления, а не положениями | AD13: 2 | AF13: 2 | AH13: 0 | AI13: См. п.51 Устава | AJ13: 2 | AL13: 2 | AN13: 2 | AP13: 2 | AR13: 2 | AT13: 2 | AV13: 2 | AX13: 2 | AZ13: 2 | BB13: 2 | BD13: 2
A14: Сведения об образовательной организации | B14: Структура и органы управления общеобразовательной организации | C14: Положения об органах управления с приложением копий указанных положений (при их наличии) | D14: 2 | F14: 2 | H14: 1 | I14: Положение об общем собрании трудового коллектива заменить на Положения об общем сотрании работников | J14: 1 | K14: в Положении о профсоюзе откорректировать название организации | L14: 2 | N14: 0 | O14: Нет информации | P14: 2 | R14: 2 | T14: 2 | V14: 2 | X14: 1 | Z14: 2 | AB14: 2 | AD14: 2 | AF14: 0 | AG14: Критерий не оформлен.Часть положений размещены в другом подразделе, части нет. | AH14: 0 | AI14: Нет информации | AJ14: 2 | AL14: 2 | AN14: 2 | AP14: 2 | AR14: 2 | AT14: 2 | AV14: 2 | AX14: 1 | AY14: Замените положение на Об общем собрании работникоа | AZ14: 2 | BB14: 2 | BD14: 2
A15: Сведения об образовательной организации | B15: Структура и органы управления общеобразовательной организации | C15: Наименования структурных подразделений (филиалы и др.) | D15: 2 | F15: 2 | H15: 2 | J15: 2 | L15: 2 | N15: 2 | P15: 2 | R15: 2 | T15: 2 | V15: 2 | X15: 2 | Z15: 2 | AB15: 2 | AD15: 2 | AF15: 2 | AH15: 2 | AJ15: 2 | AL15: 2 | AN15: 2 | AP15: 2 | AR15: 2 | AT15: 2 | AV15: 2 | AX15: 2 | AZ15: 2 | BB15: 0 | BC15: нет информации | BD15: 2
A16: Сведения об образовательной организации | B16: Структура и органы управления общеобразовательной организации | C16: ФИО и должности руководителей структурных подразделений | D16: 2 | F16: 2 | H16: 2 | J16: 2 | L16: 2 | N16: 2 | P16: 2 | R16: 2 | T16: 2 | V16: 2 | X16: 2 | Z16: 2 | AB16: 2 | AD16: 2 | AF16: 2 | AH16: 2 | AJ16: 2 | AL16: 2 | AN16: 2 | AP16: 2 | AR16: 2 | AT16: 2 | AV16: 2 | AX16: 2 | AZ16: 2 | BB16: 2 | BD16: 2
A17: Сведения об образовательной организации | B17: Структура и органы управления общеобразовательной организации | C17: Места нахождения структурных подразделений | D17: 2 | F17: 2 | H17: 2 | J17: 2 | L17: 2 | N17: 2 | P17: 2 | R17: 2 | T17: 2 | V17: 2 | X17: 2 | Z17: 2 | AB17: 2 | AD17: 2 | AF17: 2 | AH17: 2 | AJ17: 2 | AL17: 2 | AN17: 2 | AP17: 2 | AR17: 2 | AT17: 2 | AV17: 2 | AX17: 2 | AZ17: 2 | BB17: 2 | BD17: 2
A18: Сведения об образовательной организации | B18: Структура и органы управления общеобразовательной организации | C18: Адреса официальных сайтов в сети «Интернет» и электронной почты структурных подразделений (при наличии) | D18: 2 | F18: 2 | H18: 2 | J18: 2 | L18: 2 | N18: 2 | P18: 2 | R18: 2 | T18: 2 | V18: 2 | X18: 2 | Z18: 2 | AB18: 2 | AD18: 2 | AF18: 2 | AH18: 2 | AJ18: 2 | AL18: 2 | AN18: 2 | AP18: 2 | AR18: 2 | AT18: 2 | AV18: 2 | AX18: 2 | AZ18: 2 | BB18: 2 | BD18: 2
A19: Сведения об образовательной организации | B19: Структура и органы управления общеобразовательной организации | C19: Сведения о наличии положений о структурных подразделениях, с приложением копий указанных положений (при их наличии) | D19: 2 | F19: 2 | H19: 2 | J19: 2 | L19: 2 | N19: 1 | O19: Нет реквизитов утверждения положений | P19: 2 | R19: 2 | T19: 2 | V19: 2 | X19: 2 | Z19: 2 | AB19: 2 | AD19: 2 | AF19: 2 | AH19: 2 | AJ19: 2 | AL19: 2 | AN19: 2 | AP19: 2 | AR19: 2 | AT19: 2 | AV19: 2 | AX19: 2 | AZ19: 2 | BB19: 2 | BD19: 2
A20: Сведения об образовательной организации | B20: Документы | C20: Копия Устава, изменения и дополнения к Уставу | D20: 2 | F20: 2 | H20: 2 | J20: 2 | L20: 2 | N20: 2 | P20: 2 | R20: 2 | T20: 2 | V20: 2 | X20: 2 | Z20: 2 | AB20: 2 | AD20: 2 | AF20: 2 | AH20: 2 | AJ20: 2 | AL20: 2 | AN20: 2 | AP20: 2 | AR20: 2 | AT20: 2 | AV20: 2 | AX20: 2 | AZ20: 2 | BB20: 2 | BD20: 2
A21: Сведения об образовательной организации | B21: Документы | C21: Копия лицензии на осуществление образовательной деятельности (с приложениями) | D21: 2 | F21: 2 | H21: 2 | J21: 2 | L21: 2 | N21: 1 | O21: Выход через меню отсутствует. Информацию можно обнаружить только через карту сайта | P21: 2 | R21: 2 | T21: 2 | V21: 2 | X21: 2 | Z21: 2 | AB21: 1 | AC21: Нет приложения к лицензии | AD21: 2 | AF21: 2 | AH21: 2 | AJ21: 2 | AL21: 2 | AN21: 2 | AP21: 2 | AR21: 2 | AT21: 2 | AV21: 2 | AX21: 2 | AZ21: 2 | BB21: 2 | BD21: 2
A22: Сведения об образовательной организации | B22: Документы | C22: Копия плана финансово-хозяйственной деятельности образовательной организации, утвержденного в установленном законодательством РФ порядке, или бюджетные сметы образовательной организации | D22: 2 | F22: 2 | H22: 2 | J22: 2 | L22: 2 | N22: 0 | O22: Выход через меню отсутствует. Информацию можно обнаружить только через карту сайта. План за 2016 год | P22: 0 | Q22: на 2017 | R22: 2 | T22: 2 | V22: 2 | X22: 0 | Z22: 2 | AB22: 2 | AD22: 1 | AE22: Размещен в другом подразделе | AF22: 2 | AH22: 0 | AI22: на 2017 год | AJ22: 0 | AK22: на 2017 год | AL22: 2 | AN22: 2 | AP22: 2 | AR22: 2 | AT22: 2 | AV22: 0 | AW22: прошлый год | AX22: 0 | AY22: На 2017 год | AZ22: 2 | BB22: 2 | BD22: 2
A23: Сведения об образовательной организации | B23: Документы. Локальные нормативные акты | C23: Регламентирующие правила приема обучающихся | D23: 2 | F23: 2 | H23: 2 | J23: 2 | L23: 2 | N23: 1 | O23: Не все ссылки открываются | P23: 2 | R23: 2 | T23: 2 | V23: 2 | X23: 2 | Z23: 2 | AB23: 2 | AD23: 2 | AF23: 2 | AH23: 2 | AJ23: 2 | AL23: 2 | AN23: 2 | AP23: 2 | AR23: 1 | AT23: 2 | AV23: 2 | AX23: 2 | AZ23: 2 | BB23: 2 | BD23: 2
A24: Сведения об образовательной организации | B24: Документы. Локальные нормативные акты | C24: Режим занятий обучающихся | D24: 2 | F24: 2 | H24: 2 | J24: 2 | L24: 2 | N24: 2 | P24: 2 | R24: 2 | T24: 2 | V24: 2 | X24: 2 | Z24: 2 | AB24: 2 | AD24: 2 | AF24: 2 | AH24: 0 | AI24: Нет информации | AJ24: 1 | AK24: Нет реквизитов утверждения | AL24: 2 | AN24: 2 | AP24: 2 | AR24: 1 | AT24: 2 | AV24: 2 | AX24: 2 | AZ24: 2 | BB24: 2 | BD24: 2
A25: Сведения об образовательной организации | B25: Документы. Локальные нормативные акты | C25: Формы, периодичность и порядок текущего контроля успеваемости и промежуточной аттестации обучающихся | D25: 2 | F25: 2 | H25: 2 | J25: 2 | L25: 2 | N25: 2 | P25: 2 | R25: 2 | T25: 2 | V25: 2 | X25: 2 | Z25: 2 | AB25: 2 | AD25: 2 | AF25: 1 | AG25: Ссылка на устав и упоминание других документов | AH25: 1 | AI25: Размещен не локальный акт, а обычный текст | AJ25: 2 | AL25: 2 | AN25: 2 | AP25: 2 | AR25: 1 | AT25: 2 | AV25: 2 | AX25: 2 | AZ25: 2 | BB25: 2 | BD25: 2
A26: Сведения об образовательной организации | B26: Документы. Локальные нормативные акты | C26: Порядок и основания перевода, отчисления и восстановления обучающихся | D26: 2 | F26: 2 | H26: 0 | I26: нет информации | J26: 2 | L26: 2 | N26: 1 | O26: Нет реквизитов утверждения положения | P26: 0 | Q26: Нет информации | R26: 2 | T26: 2 | V26: 2 | X26: 2 | Z26: 2 | AB26: 2 | AD26: 2 | AF26: 1 | AG26: Ссылка Правила внутреннего распорядка обучающихся | AH26: 0 | AI26: Нет информации | AJ26: 2 | AL26: 2 | AN26: 2 | AP26: 2 | AR26: 1 | AT26: 2 | AV26: 2 | AX26: 2 | AZ26: 2 | BB26: 2 | BD26: 2
A27: Сведения об образовательной организации | B27: Документы. Локальные нормативные акты | C27: Порядок оформления возникновения, приостановления и прекращения отношений между образовательной организацией и обучающимися и (или) родителями (законными представителями) несовершеннолетних обучающихся | D27: 2 | F27: 2 | H27: 2 | J27: 2 | L27: 2 | N27: 0 | O27: Критерий не оформлен. Информации нет | P27: 2 | R27: 2 | T27: 2 | V27: 2 | X27: 2 | Z27: 2 | AB27: 2 | AD27: 1 | AE27: Размещены документы имеющие очень косьвенное отношение к данному критерию | AF27: 1 | AG27: Ссылка на устав и Правила внутреннего распорядка обучающихся | AH27: 0 | AI27: Нет информации | AJ27: 0 | AK27: Страница не найдена | AL27: 2 | AN27: 2 | AP27: 2 | AR27: 2 | AT27: 2 | AV27: 2 | AX27: 2 | AZ27: 2 | BB27: 2 | BD27: 2
A28: Сведения об образовательной организации | B28: Документы. Локальные нормативные акты | C28: Правила внутреннего распорядка обучающихся | D28: 2 | F28: 2 | H28: 1 | I28: Размещены правила поведения | J28: 2 | L28: 2 | N28: 0 | O28: Ссылка не открывается | P28: 2 | R28: 2 | T28: 2 | V28: 2 | X28: 2 | Z28: 2 | AB28: 2 | AD28: 2 | AF28: 2 | AH28: 0 | AI28: Нет информации | AJ28: 2 | AL28: 2 | AN28: 2 | AP28: 2 | AR28: 2 | AT28: 2 | AV28: 2 | AX28: 2 | AZ28: 2 | BB28: 2 | BD28: 2
A29: Сведения об образовательной организации | B29: Документы. Локальные нормативные акты | C29: Правила внутреннего трудового распорядка | D29: 2 | F29: 2 | H29: 2 | J29: 1 | K29: п. 53 Устава. К исключительной компетенции общего собрания работников бюджетного учреждения относятся: утверждение Правил внутреннего трудового распорядка бюджетного учреждения; | L29: 1 | M29: п. 68 Устава. К компетенции общего собрания работников Автономного учреждения относятся: утверждение Правил внутреннего трудового распорядка Автономного учреждения; | N29: 0 | O29: Размещен приказ на 2016-2017 уч. Год | P29: 2 | R29: 2 | T29: 2 | V29: 1 | W29: См. п 46 Устава. "К исключительной компетенции общего собрания работников Бюд- жетного учреждения относятся: утверждение Правил внутреннего трудового распорядка Бюджетного учреждения;", а у вас принято решением педсовета | X29: 1 | Y29: См. п 53 Устава. "К исключительной компетенции общего собрания работников Бюд- жетного учреждения относятся: утверждение Правил внутреннего трудового распорядка Бюджетного учреждения;", а у вас утверждено директором. И полномочия общего собрания в Положении и в Уставе не совпадают. | Z29: 2 | AB29: 2 | AD29: 1 | AE29: Размещен приказ о режиме работы организации | AF29: 2 | AH29: 1 | AI29: Не все реквизиты утверждения | AJ29: 1 | AK29: См. п 1 Устава. "К исключительной компетенции общего собрания работников автономного учреждения относятся: утверждение Правил внутреннего трудового распорядка автономного учреждения;", а у вас утверждено директором. | AL29: 2 | AN29: 2 | AP29: 1 | AQ29: ссылка не работает | AR29: 2 | AT29: 2 | AV29: 2 | AX29: 1 | AY29: п. 53 Устава. К исключительной компетенции общего собрания работников бюджетного учреждения относятся: утверждение Правил внутреннего трудового распорядка бюджетного учреждения; а у вас только учтено мнение профсоюза | AZ29: 2 | BB29: 2 | BD29: 2
A30: Сведения об образовательной организации | B30: Документы. Локальные нормативные акты | C30: Коллективный договор | D30: 2 | F30: 2 | H30: 0 | I30: На 2014-2017 | J30: 2 | L30: 2 | N30: 0 | O30: на 2011- 2014 годы | P30: 0 | Q30: на 2014-2017 | R30: 2 | T30: 2 | V30: 2 | X30: 2 | Z30: 2 | AB30: 2 | AD30: 2 | AF30: 2 | AH30: 2 | AJ30: 2 | AL30: 2 | AN30: 2 | AP30: 2 | AR30: 2 | AT30: 0 | AU30: до 2017 г. | AV30: 2 | AX30: 2 | AZ30: 2 | BB30: 2 | BD30: 2
A31: Сведения об образовательной организации | B31: Документы. Локальные нормативные акты | C31: Положение о сайте образовательной организации | D31: 2 | F31: 2 | H31: 1 | I31: Обновить положение о сайте (Приказ департамента образования от 21.03.2018 № 361) | J31: 2 | L31: 1 | M31: Обновить положение о сайте (Приказ департамента образования от 21.03.2018 № 361) | N31: 1 | O31: Обновить положение о сайте (Приказ департамента образования от 21.03.2018 № 361). В данном подразделе не предусмотрено размещение других документов кроме локальных актов | P31: 1 | Q31: Обновить положение о сайте (Приказ департамента образования от 21.03.2018 № 361) | R31: 2 | T31: 1 | U31: Обновить положение о сайте (Приказ департамента образования от 21.03.2018 № 361). Заменить Приложение к прошлому приказу департамента на свое. | V31: 1 | W31: У вас приложение к Положению о сайте размещено департамента образования, а требуется свое. | X31: 1 | Y31: Обновить положение о сайте (Приказ департамента образования от 21.03.2018 № 361). | Z31: 2 | AB31: 2 | AD31: 1 | AE31: Замените Приложение к Положению о сайте | AF31: 1 | AG31: Размещены документы департамента образования, Это не локальные акты | AH31: 1 | AI31: Обновить положение о сайте (Приказ департамента образования от 21.03.2018 № 361) | AJ31: 1 | AK31: Обновить положение о сайте (Приказ департамента образования от 21.03.2018 № 361) | AL31: 2 | AN31: 2 | AP31: 2 | AR31: 2 | AT31: 1 | AU31: обновите | AV31: 2 | AX31: 1 | AY31: Обновить положение о сайте (Приказ департамента образования от 21.03.2018 № 361) | AZ31: 2 | BB31: 2 | BD31: 2
A32: Сведения об образовательной организации | B32: Документы. Локальные нормативные акты | C32: Приказы, положения, должностные инструкции | D32: 2 | F32: 2 | H32: 2 | J32: 2 | L32: 2 | N32: 2 | P32: 2 | R32: 2 | T32: 2 | V32: 2 | X32: 2 | Z32: 2 | AB32: 2 | AD32: 2 | AF32: 2 | AH32: 2 | AJ32: 2 | AL32: 2 | AN32: 2 | AP32: 2 | AR32: 2 | AT32: 2 | AV32: 2 | AX32: 2 | AZ32: 2 | BB32: 2 | BD32: 2
A33: Сведения об образовательной организации | B33: Документы. Результаты самообследования | C33: Отчёт о результатах самообследования за предшествующий календарный год | D33: 2 | F33: 2 | H33: 2 | J33: 0 | K33: Нет информации | L33: 2 | N33: 2 | P33: 2 | R33: 2 | T33: 0 | U33: Нет информации | V33: 2 | X33: 2 | Z33: 2 | AB33: 2 | AD33: 2 | AF33: 2 | AH33: 0 | AI33: Нет информации | AJ33: 0 | AK33: Нет информации | AL33: 0 | AM33: Должен быть отчет за 2017 календарный год | AN33: 2 | AP33: 0 | AQ33: Должен быть отчет за 2017 календарный год | AR33: 0 | AS33: Должен быть отчет за 2017 календарный год | AT33: 0 | AU33: Должен быть отчет за 2017 календарный год | AV33: 2 | AX33: 2 | AZ33: 0 | BA33: Должен быть отчет за 2017 календарный год | BB33: 2 | BD33: 2
A34: Сведения об образовательной организации | B34: Документы. Результаты самообследования | C34: Наличие доп. показателей самообследования за предшествующий календарный год, необходимых для проведения НОКО | D34: 2 | F34: 2 | H34: 2 | J34: 2 | L34: 1 | M34: Указать год доп. Самообследования | N34: 2 | P34: 2 | R34: 2 | T34: 2 | V34: 2 | X34: 2 | Z34: 2 | AB34: 0 | AC34: Страница не найдена | AD34: 0 | AE34: Нет информации | AF34: 0 | AG34: Нет информации | AH34: 0 | AI34: Нет информации | AJ34: 1 | AK34: Размещен "странный" документ, поверх документа ДО нанесена информация за организацию | AL34: 0 | AN34: 2 | AP34: 2 | AR34: 2 | AT34: 0 | AU34: нет информации | AV34: 2 | AW34: нет реквизитов. не указан год | AX34: 2 | AZ34: 1 | BA34: без реквизитов | BB34: 2 | BD34: 2
A35: Сведения об образовательной организации | B35: Документы. Результаты самообследования | C35: Публичный доклад за предшествующий календарный год | D35: 2 | F35: 2 | H35: 0 | I35: Нет информации | J35: 0 | K35: Нет информации | L35: 2 | N35: 0 | O35: Нет информации | P35: 1 | Q35: Ссылка не открывается | R35: 1 | S35: Нет критерия. Информация расположена в подразделе "Программа развития" | T35: 0 | U35: Нет информации | V35: 0 | W35: Нет информации | X35: 0 | Y35: Нет информации | Z35: 2 | AB35: 0 | AC35: Страница не найдена | AD35: 0 | AE35: Нет информации | AF35: 0 | AG35: Нет информации | AH35: 0 | AI35: Нет информации | AJ35: 0 | AK35: Нет информации | AL35: 2 | AN35: 2 | AP35: 2 | AR35: 0 | AS35: нет информации | AT35: 0 | AU35: нет информации | AV35: 2 | AW35: нет реквизитов. не указан год | AX35: 2 | AZ35: 0 | BA35: нет информации | BB35: 1 | BC35: ссылка не активна | BD35: 2
A36: Сведения об образовательной организации | B36: Документы. Противодействие коррупции | C36: Горячая линия | D36: 2 | F36: 2 | H36: 2 | J36: 2 | L36: 2 | N36: 2 | P36: 2 | R36: 2 | T36: 2 | V36: 2 | X36: 2 | Z36: 2 | AB36: 2 | AD36: 2 | AF36: 1 | AG36: Информация размещена в другом подразделе | AH36: 0 | AI36: Нет информации | AJ36: 2 | AL36: 2 | AN36: 2 | AP36: 2 | AR36: 2 | AT36: 2 | AV36: 2 | AX36: 2 | AZ36: 0 | BA36: нет информации | BB36: 2 | BD36: 2
A37: Сведения об образовательной организации | B37: Документы. Противодействие коррупции | C37: Локальный акт о порядке пожертвований от граждан и юридических лиц | D37: 2 | F37: 2 | H37: 2 | J37: 2 | L37: 2 | N37: 0 | O37: Нет информации | P37: 2 | R37: 2 | T37: 2 | V37: 2 | X37: 1 | Y37: Размещен приказ об утверждении порядка пожертвований. А утвержденного документа нет. | Z37: 2 | AB37: 1 | AC37: Нет информации | AD37: 1 | AE37: Размещен не локальный акт , а текст | AF37: 2 | AH37: 2 | AJ37: 0 | AK37: Страница не найдена | AL37: 2 | AN37: 2 | AP37: 2 | AR37: 2 | AT37: 2 | AV37: 2 | AX37: 2 | AZ37: 0 | BA37: нет информации | BB37: 2 | BD37: 2
A38: Сведения об образовательной организации | B38: Документы. Противодействие коррупции | C38: Ссылка на реквизиты расчетного счета, на который поступают пожертвования | D38: 2 | F38: 2 | H38: 2 | J38: 2 | L38: 2 | N38: 2 | P38: 2 | R38: 2 | T38: 2 | V38: 2 | X38: 2 | Z38: 2 | AB38: 2 | AD38: 2 | AF38: 2 | AH38: 2 | AJ38: 0 | AK38: Ссылка не открывается | AL38: 2 | AN38: 2 | AP38: 2 | AR38: 2 | AT38: 2 | AV38: 2 | AX38: 2 | AZ38: 0 | BA38: нет информации | BB38: 2 | BD38: 2
A39: Сведения об образовательной организации | B39: Документы. Противодействие коррупции | C39: Отчет о расходовании пожертвований и целевых взносов физических и юридических лиц | D39: 2 | F39: 2 | H39: 0 | I39: Разщен отчет ФХД | J39: 2 | L39: 2 | N39: 0 | O39: Нет информации | P39: 2 | R39: 2 | T39: 2 | V39: 1 | W39: Плохое качество скана | X39: 0 | Y39: Нет информации | Z39: 2 | AB39: 1 | AC39: Нет информации | AD39: 0 | AE39: Нет информации | AF39: 2 | AH39: 2 | AJ39: 2 | AL39: 2 | AN39: 2 | AP39: 1 | AR39: 2 | AT39: 2 | AV39: 2 | AX39: 2 | AZ39: 0 | BA39: нет информации | BB39: 2 | BD39: 2
A40: Сведения об образовательной организации | B40: Документы. Оказание платных образовательных услуг | C40: Документ о порядке оказания платных образовательных услуг | D40: 2 | F40: 2 | H40: 2 | J40: 2 | L40: 1 | M40: Размещен приказ об открытии. Требуется положение или порядок.. | N40: 2 | P40: 2 | R40: 2 | T40: 2 | V40: 2 | X40: 2 | Z40: 1 | AA40: Размещено постановление администрации, а требуется ваш локальный акт | AB40: 2 | AD40: 2 | AF40: 0 | AG40: Нет информации | AH40: 2 | AJ40: 0 | AK40: Нет информации | AL40: 2 | AN40: 2 | AP40: 2 | AR40: 2 | AT40: 2 | AV40: 2 | AX40: 2 | AZ40: 2 | BB40: 2 | BD40: 2
A41: Сведения об образовательной организации | B41: Документы. Оказание платных образовательных услуг | C41: Образец договора об оказании платных образовательных услуг | D41: 2 | F41: 2 | H41: 2 | J41: 2 | L41: 2 | N41: 0 | O41: Нет информации | P41: 2 | R41: 2 | T41: 2 | V41: 2 | X41: 2 | Z41: 2 | AB41: 2 | AD41: 2 | AF41: 0 | AG41: Нет информации | AH41: 2 | AJ41: 0 | AK41: Нет информации | AL41: 0 | AM41: нет образца | AN41: 2 | AP41: 2 | AR41: 2 | AT41: 2 | AV41: 2 | AX41: 2 | AZ41: 2 | BB41: 0 | BC41: нет информации | BD41: 2
A42: Сведения об образовательной организации | B42: Документы. Оказание платных образовательных услуг | C42: Документ об утверждении стоимости обучения по каждой образовательной программе | D42: 2 | F42: 2 | H42: 2 | J42: 2 | L42: 2 | N42: 2 | P42: 2 | R42: 2 | T42: 2 | V42: 2 | X42: 2 | Z42: 2 | AB42: 2 | AD42: 2 | AF42: 0 | AG42: Нет информации | AH42: 2 | AJ42: 0 | AK42: Нет информации | AL42: 2 | AN42: 2 | AP42: 2 | AR42: 2 | AT42: 2 | AV42: 2 | AX42: 2 | AZ42: 2 | BB42: 0 | BC42: нет информации | BD42: 2
A43: Сведения об образовательной организации | B43: Документы. Результаты проверок | C43: Предписания органов, осуществляющих государственный контроль (надзор) в сфере образования, отчёты об исполнении таких предписаний | D43: 2 | F43: 2 | H43: 2 | J43: 2 | L43: 2 | N43: 1 | O43: Оформите критерий. Удалите информацию не относящуюся к данному критерию. | P43: 1 | Q43: Нет информации | R43: 2 | T43: 2 | V43: 2 | X43: 2 | Z43: 2 | AB43: 2 | AD43: 2 | AF43: 2 | AH43: 2 | AJ43: 2 | AL43: 2 | AN43: 2 | AP43: 2 | AR43: 1 | AS43: Возможно размещение только предписаний, отчетов об исполнении предписаний, док. о снятии с контроля, либо информация о том, что проверка не проводилась | AT43: 2 | AV43: 2 | AX43: 0 | AY43: Нет критерия | AZ43: 0 | BA43: Возможно размещение только предписаний, отчетов об исполнении предписаний, док. о снятии с контроля, либо информация о том, что проверка не проводилась | BB43: 2 | BD43: 2
A44: Сведения об образовательной организации | B44: Документы. Обработка персональных данных | C44: Приказ о назначении ответственного за организацию обработки персональных данных в ОО | D44: 2 | F44: 2 | H44: 2 | J44: 2 | L44: 2 | N44: 2 | P44: 2 | R44: 2 | T44: 2 | V44: 2 | X44: 2 | Z44: 2 | AB44: 0 | AC44: Страница не найдена | AD44: 0 | AE44: Нет информации | AF44: 1 | AG44: Информация размещена в другом подразделе. Приказ устарел. | AH44: 2 | AJ44: 2 | AL44: 2 | AN44: 2 | AP44: 2 | AR44: 2 | AT44: 2 | AV44: 2 | AX44: 2 | AZ44: 2 | BB44: 2 | BD44: 2
A45: Сведения об образовательной организации | B45: Документы. Обработка персональных данных | C45: Правила (положение) обработки персональных данных, утвержденные руководителем ОО | D45: 2 | E45: Размещена Политика | F45: 2 | H45: 2 | J45: 2 | L45: 2 | N45: 2 | P45: 2 | R45: 2 | T45: 2 | V45: 2 | X45: 2 | Z45: 2 | AB45: 0 | AC45: Страница не найдена | AD45: 0 | AE45: Нет информации | AF45: 1 | AG45: Только работников, а обучающихся нет | AH45: 1 | AI45: Положение о ЗАЩИТЕ, а требуется об ОБРАБОТКЕ | AJ45: 0 | AK45: Страница не найдена | AL45: 2 | AN45: 2 | AP45: 2 | AR45: 2 | AT45: 2 | AV45: 2 | AX45: 1 | AY45: Нет реквизитов утверждения | AZ45: 2 | BB45: 2 | BD45: 2
A46: Сведения об образовательной организации | B46: Документы. Обработка персональных данных | C46: Типовая форма согласия на обработку персональных данных работников и обучающихся (воспитанников), в соответствии со ст. 18.1. Федерального закона от 27.07.2006 № 152-ФЗ «О персональных данных» | D46: 2 | F46: 2 | H46: 2 | J46: 2 | L46: 2 | N46: 2 | P46: 2 | R46: 2 | T46: 2 | V46: 2 | X46: 2 | Z46: 2 | AB46: 0 | AC46: Страница не найдена | AD46: 0 | AE46: Нет информации | AF46: 1 | AG46: Только работников, а обучающихся нет | AH46: 1 | AI46: Нет формы согласия работников | AJ46: 2 | AL46: 2 | AN46: 2 | AP46: 2 | AR46: 2 | AT46: 2 | AV46: 2 | AX46: 2 | AZ46: 2 | BB46: 2 | BD46: 1 | BE46: Нет согласия для обучающихся
A47: Сведения об образовательной организации | B47: Образование | C47: Реализуемые уровни образования | D47: 2 | F47: 2 | H47: 2 | J47: 2 | L47: 2 | N47: 2 | P47: 2 | R47: 2 | T47: 2 | V47: 2 | X47: 2 | Z47: 2 | AB47: 2 | AD47: 2 | AF47: 1 | AG47: Укажите уровень образования | AH47: 2 | AJ47: 2 | AL47: 2 | AN47: 2 | AP47: 2 | AR47: 2 | AT47: 2 | AV47: 2 | AX47: 1 | AY47: Уровень образования у вас ДОПОЛНИТЕЛЬНОЕ, а указаны у вас ПОДВИДЫ дополнительного образования взрослых и детей (п. 6 ст.10 закона об образовании | AZ47: 2 | BB47: 2 | BD47: 2
A48: Сведения об образовательной организации | B48: Образование | C48: Форма получения образования и форма обучения | D48: 2 | F48: 2 | H48: 2 | J48: 2 | L48: 2 | N48: 0 | O48: Укажите форму получения образования и форму обучения | P48: 2 | R48: 2 | T48: 2 | V48: 2 | X48: 2 | Z48: 0 | AA48: Заполните этот критерий в соответствии с Законом Образовании ст. 17 | AB48: 2 | AD48: 2 | AF48: 2 | AH48: 2 | AJ48: 2 | AL48: 2 | AN48: 2 | AP48: 2 | AR48: 2 | AT48: 2 | AV48: 2 | AX48: 2 | AZ48: 2 | BB48: 2 | BD48: 2
A49: Сведения об образовательной организации | B49: Образование | C49: Нормативные сроки обучения | D49: 2 | F49: 2 | H49: 2 | J49: 2 | L49: 2 | N49: 2 | P49: 2 | R49: 2 | T49: 2 | V49: 2 | X49: 2 | Z49: 2 | AB49: 2 | AD49: 2 | AF49: 2 | AH49: 2 | AJ49: 2 | AL49: 2 | AN49: 2 | AP49: 2 | AR49: 1 | AS49: слово "сроки" написано раздельно: Нормативные срок и обучения | AT49: 2 | AV49: 2 | AX49: 2 | AZ49: 2 | BB49: 2 | BD49: 2
A50: Сведения об образовательной организации | B50: Образование | C50: Описание образовательной программы с приложением её копии. | D50: 2 | F50: 2 | H50: 0 | I50: Критерий не оформлен. Нет краткого описания программ | J50: 0 | K50: Критерий не оформлен. Нет краткого описания программ | L50: 0 | M50: Критерий не оформлен. Нет краткого описания программ | N50: 0 | O50: Критерий не оформлен. Нет краткого описания программ | P50: 0 | Q50: Критерий не оформлен. Нет инфоормации | R50: 0 | S50: Нет критерия | T50: 0 | U50: Нет критерия | V50: 0 | W50: Нет критерия | X50: 0 | Y50: Нет критерия | Z50: 1 | AA50: Нет описания образовательных программ | AB50: 0 | AC50: Нет критерия | AD50: 0 | AE50: Нет информации | AF50: 0 | AG50: Нет информации | AH50: 0 | AI50: Нет критерия | AJ50: 1 | AK50: Нет описания образовательной программы и нет реквизитов утверждения | AL50: 2 | AN50: 2 | AP50: 2 | AR50: 2 | AT50: 2 | AV50: 2 | AX50: 1 | AY50: Нет реквизитов утверждения для обр. программы | AZ50: 2 | BB50: 2 | BD50: 1 | BE50: Нет описания программ
A51: Сведения об образовательной организации | B51: Образование | C51: Информация о реализуемых дополнительных образовательных программах с указанием учебных предметов, курсов, дисциплин (модулей), практики, предусмотренных соответствующей образовательной программой | D51: 2 | F51: 2 | H51: 0 | I51: Критерий не оформлен. Нет информации | J51: 1 | K51: Размещен только перечень | L51: 2 | N51: 2 | P51: 0 | Q51: Критерий не оформлен. Нет инфоормации | R51: 2 | T51: 2 | V51: 2 | X51: 2 | Z51: 1 | AA51: Размещены образовательные программы, которые требуется размещать в предыдущем критерии | AB51: 2 | AD51: 1 | AE51: Разместить более подробную информацию | AF51: 0 | AG51: Нет информации | AH51: 0 | AI51: Нет критерия | AJ51: 0 | AK51: Нет информации | AL51: 2 | AN51: 2 | AP51: 2 | AR51: 2 | AT51: 2 | AV51: 2 | AX51: 1 | AY51: Информация на странице размещена но не позволяет однозначно ее отнести ни к описанию образовательной программы, ни к информации о реализуемых .. Программах | AZ51: 2 | BB51: 2 | BD51: 2
A52: Сведения об образовательной организации | B52: Образование | C52: Использование при реализации указанных образовательных программ электронного обучения и дистанционных образовательных технологий | D52: 2 | E52: В заголовке указать наименование обр. организации | F52: 2 | H52: 0 | I52: Критерий не оформлен. Нет информации | J52: 0 | K52: Критерий не оформлен. Нет информации | L52: 0 | M52: Нет информации | N52: 0 | O52: Нет информации | P52: 0 | Q52: Критерий не оформлен. Нет инфоормации | R52: 1 | S52: Оформить отдельным критерием | T52: 2 | V52: 2 | X52: 0 | Y52: Нет критерия | Z52: 2 | AB52: 0 | AC52: Нет критерия | AD52: 0 | AE52: Нет информации | AF52: 0 | AG52: Нет информации | AH52: 0 | AI52: Нет критерия | AJ52: 0 | AK52: Нет информации | AL52: 2 | AN52: 2 | AP52: 0 | AQ52: нет информации | AR52: 0 | AS52: нет информации | AT52: 0 | AU52: нет информации | AV52: 2 | AX52: 2 | AY52: Откоректируйте формулировку | AZ52: 2 | BB52: 2 | BD52: 2
A53: Сведения об образовательной организации | B53: Образование | C53: Численность обучающихся по реализуемым дополнительным образовательным программам за счет бюджетных ассигнований федерального бюджета, бюджетов субъектов РФ, местных бюджетов и по договорам об образовании за счет средств фических и (или) юридических лиц | D53: 2 | F53: 2 | H53: 2 | J53: 2 | L53: 2 | N53: 2 | P53: 2 | R53: 2 | T53: 2 | V53: 2 | X53: 2 | Z53: 2 | AB53: 2 | AD53: 2 | AF53: 2 | AH53: 2 | AJ53: 2 | AL53: 2 | AN53: 2 | AP53: 2 | AR53: 2 | AT53: 2 | AV53: 2 | AX53: 2 | AZ53: 2 | BB53: 2 | BD53: 2
A54: Сведения об образовательной организации | B54: Образование | C54: Язык, на котором осуществляется образование (обучение) | D54: 2 | F54: 2 | H54: 2 | J54: 2 | L54: 2 | N54: 2 | P54: 2 | R54: 2 | T54: 2 | V54: 2 | X54: 2 | Z54: 2 | AB54: 2 | AD54: 2 | AF54: 2 | AH54: 2 | AJ54: 2 | AL54: 2 | AN54: 2 | AP54: 2 | AR54: 2 | AT54: 2 | AV54: 2 | AX54: 2 | AZ54: 2 | BB54: 2 | BD54: 2
A55: Сведения об образовательной организации | B55: Образование | C55: Описание дополнительной образовательной программы с приложением ее копии | D55: 1 | E55: Нет описания "обобщенной программы" | F55: 2 | H55: 0 | I55: Нет описания образовательной программы. Программа на прошлый год | J55: 1 | K55: Нет описания образовательной программы. | L55: 1 | M55: Нет описания образовательной программы. | N55: 0 | O55: Нет информации | P55: 1 | Q55: Нет описания программы | R55: 2 | T55: 2 | V55: 1 | W55: Нет описания образовательной программы | X55: 0 | Y55: Нет описания программы. Программа на 2016-2017 год | Z55: 1 | AA55: Нет описания образовательных программ и вместо образовательной программыразмещены рабочие программы дисциплин | AB55: 2 | AD55: 0 | AE55: Нет информации | AF55: 1 | AG55: Нет описания программы. | AH55: 2 | AI55: Нет описания программы. Программа на 2016-2017 уч. Год | AJ55: 1 | AK55: Нет описания образовательной программы и нет реквизитов утверждения | AL55: 2 | AN55: 2 | AP55: 2 | AR55: 2 | AT55: 2 | AV55: 2 | AX55: 1 | AY55: Нет реквизитов утверждения | AZ55: 2 | BB55: 2 | BD55: 1 | BE55: Нет описания программ
A56: Сведения об образовательной организации | B56: Образование | C56: Учебный план с приложением его копии | D56: 2 | F56: 2 | H56: 2 | J56: 2 | L56: 2 | N56: 0 | O56: Нет информации | P56: 2 | R56: 2 | T56: 2 | V56: 2 | X56: 1 | Y56: Плохое качество с | Z56: 2 | AB56: 2 | AD56: 2 | AF56: 2 | AH56: 2 | AJ56: 2 | AL56: 2 | AN56: 2 | AP56: 0 | AQ56: прошлый год | AR56: 2 | AT56: 0 | AU56: прошлый год | AV56: 2 | AX56: 2 | AZ56: 2 | BB56: 2 | BD56: 2
A57: Сведения об образовательной организации | B57: Образование | C57: Календарный учебный график с приложением его копии | D57: 2 | F57: 2 | H57: 2 | J57: 2 | L57: 2 | N57: 0 | O57: Нет информации | P57: 2 | R57: 2 | T57: 2 | V57: 2 | X57: 2 | Z57: 2 | AB57: 2 | AD57: 0 | AE57: на 2016-2017 уч. Год | AF57: 0 | AG57: на 2016-2017 | AH57: 1 | AI57: Размещен план работы | AJ57: 0 | AK57: на 2016-2017 уч. Год | AL57: 2 | AN57: 2 | AP57: 0 | AQ57: прошлый год | AR57: 2 | AT57: 0 | AU57: прошлый год | AV57: 2 | AX57: 2 | AZ57: 2 | BB57: 2 | BD57: 2
A58: Сведения об образовательной организации | B58: Образование | C58: Методические и иные документы, разработанные образовательной организацией для обеспечения образовательного процесса | D58: 2 | F58: 2 | H58: 2 | J58: 2 | L58: 2 | N58: 1 | O58: нет даты размещения информации | P58: 2 | R58: 2 | T58: 2 | V58: 2 | W58: Сортировку информации на странице лучше провести по дате размещения , а не по фамилии автора | X58: 1 | Y58: Нет даты размещения | Z58: 2 | AB58: 2 | AD58: 0 | AE58: Страница не открывается | AF58: 1 | AG58: Нет даты размещения | AH58: 1 | AI58: Нет даты размещения | AJ58: 2 | AL58: 2 | AN58: 2 | AP58: 2 | AR58: 2 | AT58: 2 | AV58: 2 | AX58: 1 | AY58: нет материалов за этот год | AZ58: 2 | BB58: 2 | BD58: 2
A59: Сведения об образовательной организации | B59: Образовательные стандарты | C59: Информация ФГОС и об образовательных стандартах с приложением копий или гиперссылок на соответствующие документы на сайте Министерства образования и науки Российской Федерации | D59: 2 | F59: 2 | H59: 0 | I59: Критерий не оформлен. Нет информации | J59: 1 | K59: Критерий не оформлен. Нет информации | L59: 0 | M59: Ссылка не открывается | N59: 0 | O59: Критерий не оформлен. | P59: 0 | Q59: Нет информации | R59: 0 | S59: Нет информации | T59: 0 | U59: Критерий не оформлен. | V59: 0 | W59: Критерий не оформлен. | X59: 0 | Y59: Критерий не оформлен. | Z59: 2 | AB59: 0 | AC59: Нет критерия | AD59: 0 | AE59: Нет информации | AF59: 0 | AG59: Нет критерия | AH59: 0 | AI59: ссылка не открывается | AJ59: 0 | AK59: Нет критерия | AL59: 2 | AN59: 2 | AP59: 2 | AR59: 0 | AS59: нет информации | AT59: 0 | AU59: нет информации | AV59: 2 | AX59: 1 | AY59: Ссылка на поисковую страницу с отобранными документами, не относящемися к этому критерию | AZ59: 0 | BA59: Критерий не выделен | BB59: 2 | BD59: 2
A60: Сведения об образовательной организации | B60: Руководство. Педагогический состав | C60: Фамилия, Имя, Отчество руководителя и его заместителей | D60: 2 | F60: 2 | H60: 2 | J60: 2 | L60: 2 | N60: 2 | P60: 2 | R60: 2 | T60: 2 | V60: 2 | X60: 2 | Z60: 2 | AB60: 2 | AD60: 2 | AF60: 2 | AH60: 2 | AJ60: 2 | AL60: 2 | AN60: 2 | AP60: 2 | AR60: 2 | AT60: 2 | AV60: 2 | AX60: 2 | AZ60: 2 | BB60: 2 | BD60: 2
A61: Сведения об образовательной организации | B61: Руководство. Педагогический состав | C61: Должность руководителя, его заместителей | D61: 2 | F61: 2 | H61: 2 | J61: 2 | L61: 2 | N61: 2 | P61: 2 | R61: 2 | T61: 2 | V61: 2 | X61: 2 | Z61: 2 | AB61: 2 | AD61: 2 | AF61: 2 | AH61: 2 | AJ61: 2 | AL61: 2 | AN61: 2 | AP61: 2 | AR61: 2 | AT61: 2 | AV61: 2 | AX61: 2 | AZ61: 2 | BB61: 2 | BD61: 2
A62: Сведения об образовательной организации | B62: Руководство. Педагогический состав | C62: Контактные телефоны | D62: 2 | F62: 2 | H62: 2 | J62: 2 | L62: 2 | N62: 2 | P62: 2 | R62: 2 | T62: 2 | V62: 2 | X62: 2 | Z62: 2 | AB62: 2 | AD62: 2 | AF62: 2 | AH62: 2 | AJ62: 2 | AL62: 2 | AN62: 2 | AP62: 2 | AR62: 2 | AT62: 2 | AV62: 2 | AX62: 2 | AZ62: 2 | BB62: 2 | BD62: 2
A63: Сведения об образовательной организации | B63: Руководство. Педагогический состав | C63: Адреса электронной почты | D63: 2 | F63: 2 | H63: 2 | J63: 2 | L63: 2 | N63: 2 | P63: 2 | R63: 2 | T63: 2 | V63: 2 | X63: 2 | Z63: 2 | AB63: 2 | AD63: 2 | AF63: 2 | AH63: 2 | AJ63: 2 | AL63: 2 | AN63: 2 | AP63: 2 | AR63: 2 | AT63: 2 | AV63: 2 | AX63: 2 | AZ63: 2 | BB63: 2 | BD63: 2
A64: Сведения об образовательной организации | B64: Руководство. Педагогический состав | C64: Фамилия, Имя, Отчество педагогических работников | D64: 2 | F64: 2 | H64: 1 | I64: Сведения размещены в нескольких документах.Поиск информации сильно затруднен. | J64: 2 | L64: 2 | N64: 2 | P64: 2 | R64: 2 | T64: 2 | V64: 2 | X64: 2 | Z64: 2 | AB64: 0 | AC64: Страница не найдена | AD64: 2 | AF64: 2 | AH64: 0 | AI64: Нет критерия | AJ64: 2 | AL64: 2 | AN64: 2 | AP64: 2 | AR64: 2 | AT64: 2 | AV64: 2 | AX64: 1 | AY64: Информация размещена в неудобном для восприятия виде | AZ64: 2 | BB64: 2 | BD64: 2
A65: Сведения об образовательной организации | B65: Руководство. Педагогический состав | C65: Занимаемая должность (должности) | D65: 2 | F65: 2 | H65: 2 | J65: 2 | L65: 2 | N65: 2 | P65: 2 | R65: 2 | T65: 2 | V65: 2 | X65: 2 | Z65: 2 | AB65: 0 | AC65: Страница не найдена | AD65: 2 | AF65: 2 | AH65: 0 | AI65: Нет критерия | AJ65: 2 | AL65: 2 | AN65: 2 | AP65: 2 | AR65: 2 | AT65: 2 | AV65: 2 | AX65: 2 | AZ65: 2 | BB65: 2 | BD65: 2
A66: Сведения об образовательной организации | B66: Руководство. Педагогический состав | C66: Преподаваемые дисциплины | D66: 2 | F66: 2 | H66: 2 | J66: 2 | L66: 2 | N66: 0 | O66: Нет информации | P66: 2 | R66: 2 | T66: 2 | V66: 0 | W66: Нет критерия | X66: 2 | Z66: 2 | AB66: 0 | AC66: Страница не найдена | AD66: 2 | AF66: 2 | AH66: 0 | AI66: Нет критерия | AJ66: 2 | AL66: 2 | AN66: 1 | AO66: информация не обо всех педагогах | AP66: 2 | AR66: 2 | AT66: 0 | AU66: нет информации | AV66: 2 | AX66: 2 | AZ66: 0 | BA66: нет информации | BB66: 2 | BD66: 2
A67: Сведения об образовательной организации | B67: Руководство. Педагогический состав | C67: Ученая степень (при наличии), ученое звание (при наличии) | D67: 2 | F67: 2 | H67: 2 | J67: 2 | L67: 2 | N67: 0 | O67: Нет информации | P67: 2 | R67: 2 | T67: 2 | V67: 2 | X67: 2 | Z67: 2 | AB67: 0 | AC67: Страница не найдена | AD67: 2 | AF67: 2 | AH67: 0 | AI67: Нет критерия | AJ67: 2 | AL67: 2 | AN67: 2 | AP67: 2 | AR67: 2 | AT67: 2 | AV67: 2 | AX67: 2 | AZ67: 2 | BB67: 2 | BD67: 2
A68: Сведения об образовательной организации | B68: Руководство. Педагогический состав | C68: Наименование направления подготовки и (или) специальности | D68: 2 | F68: 2 | H68: 2 | J68: 2 | L68: 2 | N68: 0 | O68: Нет информации | P68: 2 | R68: 2 | T68: 2 | V68: 2 | X68: 2 | Z68: 2 | AB68: 0 | AC68: Страница не найдена | AD68: 2 | AF68: 2 | AH68: 0 | AI68: Нет критерия | AJ68: 2 | AL68: 2 | AN68: 2 | AP68: 2 | AR68: 2 | AT68: 2 | AV68: 2 | AX68: 2 | AZ68: 2 | BB68: 2 | BD68: 2
A69: Сведения об образовательной организации | B69: Руководство. Педагогический состав | C69: Данные о повышении квалификации и (или) профессиональной переподготовке (при наличии) | D69: 2 | E69: Слово "Курсы" замените на "Данные о повышении квалификации…" | F69: 2 | H69: 2 | J69: 2 | L69: 2 | N69: 0 | O69: Нет информации | P69: 2 | R69: 2 | T69: 2 | V69: 2 | X69: 2 | Z69: 2 | AB69: 0 | AC69: Страница не найдена | AD69: 2 | AF69: 2 | AH69: 0 | AI69: Нет критерия | AJ69: 2 | AL69: 2 | AN69: 2 | AP69: 2 | AR69: 2 | AT69: 2 | AV69: 2 | AX69: 2 | AZ69: 2 | BB69: 2 | BD69: 2
A70: Сведения об образовательной организации | B70: Руководство. Педагогический состав | C70: Общий стаж работы | D70: 2 | F70: 2 | H70: 1 | I70: Размещена непонятная информация "Стаж". К какому критерию относится не понятною | J70: 2 | L70: 2 | N70: 0 | O70: Нет информации | P70: 2 | R70: 2 | T70: 2 | V70: 2 | X70: 2 | Z70: 2 | AB70: 0 | AC70: Страница не найдена | AD70: 2 | AF70: 2 | AH70: 0 | AI70: Нет критерия | AJ70: 2 | AL70: 2 | AN70: 2 | AP70: 2 | AR70: 2 | AT70: 2 | AV70: 2 | AX70: 2 | AZ70: 2 | BB70: 2 | BD70: 2
A71: Сведения об образовательной организации | B71: Руководство. Педагогический состав | C71: Стаж работы по специальности | D71: 2 | F71: 2 | H71: 1 | I71: Размещена непонятная информация "Стаж". К какому критерию относится не понятною | J71: 2 | L71: 2 | N71: 0 | O71: Нет информации | P71: 2 | R71: 2 | T71: 2 | V71: 2 | X71: 2 | Z71: 2 | AB71: 0 | AC71: Страница не найдена | AD71: 2 | AF71: 2 | AH71: 0 | AI71: Нет критерия | AJ71: 2 | AL71: 2 | AN71: 2 | AP71: 2 | AR71: 2 | AT71: 2 | AV71: 2 | AX71: 2 | AZ71: 0 | BA71: нет информации | BB71: 2 | BD71: 2
A72: Сведения об образовательной организации | B72: Материально-техническая оснащенность образовательного процесса | C72: Сведения о наличии оборудованных учебных кабинетов, объектов для проведения практических занятий, объектов спорта, средств обучения и воспитания, в том числе приспособленных для использования инвалидами и лицами с ограниченными возможностями здоровья | D72: 2 | E72: Оформить критерий. | F72: 2 | H72: 2 | J72: 1 | K72: Более подробную информацию | L72: 2 | N72: 2 | P72: 0 | Q72: Нет информации | R72: 2 | T72: 2 | V72: 2 | X72: 2 | Z72: 2 | AB72: 2 | AD72: 2 | AE72: Разместите полную информацию. А не только об инвалидах | AF72: 2 | AH72: 2 | AI72: Разместите более подробную инфлрмацию | AJ72: 2 | AL72: 2 | AN72: 2 | AP72: 2 | AR72: 2 | AT72: 2 | AV72: 2 | AX72: 1 | AY72: Необычайно скудная информация | AZ72: 2 | BB72: 2 | BD72: 1 | BE72: Разместить более подробную информацию
A73: Сведения об образовательной организации | B73: Материально-техническая оснащенность образовательного процесса | C73: условия охраны здоровья обучающихся, в том числе инвалидов и лиц с ограниченными возможностями здоровья | D73: 0 | E73: Оформить критерий. Нет информации. | F73: 2 | H73: 1 | I73: Критерий не оформлен. Вся информация в одном документе | J73: 0 | K73: Критерий не оформлен. Нет информации. | L73: 0 | M73: Нет криерия | N73: 1 | O73: Не полная информация | P73: 0 | Q73: Нет информации | R73: 1 | S73: Оформить отдельным критерием | T73: 0 | U73: Критерий не оформлен. | V73: 0 | W73: Критерий не оформлен. | X73: 2 | Z73: 0 | AA73: Критерий не оформлен. | AB73: 2 | AD73: 0 | AE73: Нет информации | AF73: 0 | AG73: Нет критерия | AH73: 0 | AI73: Нет критерия | AJ73: 0 | AK73: Нет критерия | AL73: 2 | AN73: 2 | AP73: 0 | AQ73: нет информации | AR73: 0 | AS73: нет информации | AT73: 0 | AU73: нет информации | AV73: 2 | AX73: 0 | AY73: Нет критерия | AZ73: 0 | BA73: нет информации | BB73: 2 | BD73: 1 | BE73: Информация должна быть не только по инвалидам, но и по всем обучающимся
A74: Сведения об образовательной организации | B74: Материально-техническая оснащенность образовательного процесса | C74: доступ в здания образовательной организации инвалидов и лиц с ограниченными возможностями здоровья | D74: 2 | E74: Оформить критерий | F74: 2 | H74: 0 | I74: Нет критерия | J74: 2 | L74: 0 | M74: Нет криерия | N74: 1 | O74: Не полная информация | P74: 0 | Q74: Нет информации | R74: 1 | S74: Оформить отдельным критерием | T74: 2 | V74: 0 | W74: Критерий не оформлен. | X74: 2 | Z74: 0 | AA74: Критерий не оформлен. | AB74: 2 | AD74: 2 | AF74: 0 | AG74: Нет критерия | AH74: 0 | AI74: Нет критерия | AJ74: 0 | AK74: Нет критерия | AL74: 2 | AN74: 2 | AP74: 0 | AQ74: нет информации | AR74: 2 | AT74: 0 | AU74: нет информации | AV74: 2 | AX74: 2 | AZ74: 2 | BB74: 2 | BD74: 2
A75: Сведения об образовательной организации | B75: Материально-техническая оснащенность образовательного процесса | C75: доступ к информационным системам и информационно-телекоммуникационным сетям, в том числе приспособленным для использования инвалидами и лицами с ограниченными возможностями здоровья | D75: 1 | E75: Оформить критерий. Разместить болееподробную информацию | F75: 2 | H75: 1 | I75: Критерий не оформлен. Вся информация в одном документе | J75: 2 | L75: 0 | M75: Нет криерия | N75: 1 | O75: Не полная информация | P75: 0 | Q75: Нет информации | R75: 1 | S75: Оформить отдельным критерием | T75: 2 | V75: 0 | W75: Критерий не оформлен. | X75: 2 | Z75: 0 | AA75: Критерий не оформлен. | AB75: 2 | AD75: 1 | AE75: Разместите более полную информацию | AF75: 0 | AG75: Нет критерия | AH75: 0 | AI75: Нет критерия | AJ75: 0 | AK75: Нет критерия | AL75: 2 | AN75: 2 | AP75: 0 | AQ75: нет информации | AR75: 2 | AT75: 0 | AU75: нет информации | AV75: 2 | AX75: 2 | AZ75: 0 | BA75: нет информации | BB75: 2 | BD75: 2
A76: Сведения об образовательной организации | B76: Материально-техническая оснащенность образовательного процесса | C76: Сведения об электронных образовательных ресурсах, к которым обеспечивается доступ обучающихся, в том числе приспособленные для использования инвалидами и лицами с ограниченными возможностями здоровья (ссылки на информационно-образовательные ресурсы:  официальный сайт Министерства образования и науки Российской Федерации http://www.mon.gov.ru;  федеральный портал «Российское образование» http://www.edu.ru;  информационная система «Единое окно доступа к образовательным ресурсам» http://windou.edu.ru;  единая коллекция цифровых образовательных ресурсов http://school-collection.edu.ru;  федеральный центр информационно-образовательных ресурсов http://fcior.edu.ru) | D76: 2 | E76: Оформить критерий | F76: 2 | H76: 1 | I76: Критерий не оформлен. Информация размещена в другом подразделе. | J76: 0 | K76: Критерий не оформлен. Нет информации. | L76: 0 | M76: Нет криерия | N76: 0 | O76: Нет информации | P76: 1 | Q76: Размещен в другом подразделе | R76: 0 | S76: Нет критерия | T76: 0 | U76: Критерий не оформлен. | V76: 1 | W76: Размещен в другом подразделе | X76: 0 | Y76: Критерий не оформлен. | Z76: 1 | AA76: Размещены в другом подразделе | AB76: 2 | AD76: 1 | AE76: Разместите более полную информацию | AF76: 0 | AG76: Нет критерия | AH76: 2 | AJ76: 0 | AK76: Нет критерия | AL76: 2 | AN76: 2 | AP76: 0 | AQ76: нет информации | AR76: 2 | AT76: 0 | AU76: нет информации | AV76: 2 | AX76: 2 | AZ76: 0 | BA76: нет информации | BB76: 2 | BD76: 2
A77: Сведения об образовательной организации | B77: Материально-техническая оснащенность образовательного процесса | C77: Сведения о специальных технических средствах обучения коллективного и индивидуального пользования для инвалидов и лиц с ограниченными возможностями здоровья | D77: 0 | E77: Оформить критерий. Информация отсутствует. | F77: 2 | H77: 0 | I77: Критерий не оформлен. Нет информации. | J77: 2 | L77: 0 | M77: Нет криерия | N77: 2 | P77: 0 | Q77: Нет информации | R77: 1 | S77: Оформить отдельным критерием | T77: 2 | V77: 0 | W77: Критерий не оформлен. | X77: 2 | Z77: 2 | AB77: 2 | AD77: 2 | AF77: 0 | AG77: Нет критерия | AH77: 0 | AI77: Нет критерия | AJ77: 0 | AK77: Нет критерия | AL77: 2 | AN77: 2 | AP77: 0 | AQ77: нет информации | AR77: 2 | AT77: 0 | AU77: нет информации | AV77: 2 | AX77: 1 | AY77: Необычайно скудная информация | AZ77: 0 | BA77: нет информации | BB77: 2 | BD77: 2
A78: Сведения об образовательной организации | B78: Виды материальной поддержки | C78: виды материальной поддержки обучающихся | D78: 2 | F78: 2 | H78: 0 | I78: Критерий не оформлен. Нет информации. | J78: 0 | K78: Критерий не оформлен. Нет информации. | L78: 2 | N78: 0 | O78: Нет информации | P78: 0 | Q78: Нет информации | R78: 0 | S78: Нет критерия | T78: 0 | U78: Критерий не оформлен. | V78: 0 | W78: Критерий не оформлен. | X78: 0 | Y78: Критерий не оформлен. | Z78: 2 | AB78: 0 | AC78: Страница не найдена | AD78: 0 | AE78: Нет информации | AF78: 0 | AG78: Нет критерия | AH78: 2 | AJ78: 0 | AK78: Нет критерия | AL78: 2 | AN78: 2 | AP78: 0 | AQ78: нет информации | AR78: 0 | AS78: нет информации | AT78: 0 | AU78: критерий не выделен | AV78: 2 | AX78: 0 | AY78: Переход на сайт КубГУ | AZ78: 0 | BA78: критерий не выделен | BB78: 2 | BD78: 2
A79: Сведения об образовательной организации | B79: Виды материальной поддержки | C79: трудоустройство выпускников | D79: 2 | F79: 2 | H79: 0 | I79: Критерий не оформлен. Нет информации. | J79: 0 | K79: Критерий не оформлен. Нет информации. | L79: 0 | M79: Нет криерия | N79: 0 | O79: Нет информации | P79: 0 | Q79: Нет информации | R79: 0 | S79: Нет критерия | T79: 0 | U79: Критерий не оформлен. | V79: 0 | W79: Критерий не оформлен. | X79: 0 | Y79: Критерий не оформлен. | Z79: 2 | AB79: 0 | AC79: Страница не найдена | AD79: 0 | AE79: Нет информации | AF79: 0 | AG79: Нет критерия | AH79: 0 | AI79: Нет критерия | AJ79: 0 | AK79: Нет критерия | AL79: 2 | AN79: 2 | AP79: 0 | AQ79: нет информации | AR79: 0 | AS79: нет информации | AT79: 0 | AU79: критерий не выделен | AV79: 2 | AX79: 0 | AY79: Нет информации | AZ79: 0 | BA79: критерий не выделен | BB79: 2 | BD79: 2
A80: Сведения об образовательной организации | B80: Платные образовательные услуги | C80: Гиперссылка на страницу Оказание платных образовательных 1.3. Документы | D80: 2 | F80: 2 | H80: 2 | J80: 2 | L80: 2 | N80: 1 | O80: Нет гиперссылки | P80: 0 | Q80: Нет информации | R80: 2 | T80: 2 | V80: 2 | X80: 2 | Z80: 2 | AB80: 2 | AD80: 2 | AF80: 1 | AG80: на 2016-2017 | AH80: 2 | AJ80: 2 | AL80: 2 | AN80: 2 | AP80: 2 | AR80: 2 | AT80: 1 | AU80: новая страница. Не ссылка | AV80: 2 | AX80: 2 | AZ80: 0 | BA80: Новая страница. Не ссылка. Информации нет. | BB80: 2 | BD80: 2
A81: Сведения об образовательной организации | B81: Платные образовательные услуги | C81: расписание занятий по платным дополнительным образовательным услугам, не относящимся к основным видам деятельности с указанием Ф.И.О. педагогического работника | D81: 2 | F81: 2 | H81: 2 | J81: 2 | L81: 0 | M81: Нет криерия | N81: 0 | O81: Нет информации | P81: 0 | Q81: Нет информации | R81: 2 | T81: 2 | V81: 2 | X81: 2 | Z81: 2 | AB81: 2 | AD81: 2 | AF81: 1 | AG81: на 2016-2017 | AH81: 2 | AJ81: 0 | AK81: Нет критерия | AL81: 2 | AN81: 2 | AP81: 2 | AR81: 0 | AS81: нет информации | AT81: 2 | AV81: 2 | AX81: 2 | AZ81: 0 | BA81: нет информации | BB81: 0 | BC81: нет информации | BD81: 2
A82: Сведения об образовательной организации | B82: Финансово-хозяйственная деятельность | C82: Муниципальное задание на текущий год и отчет о выполнении за прошедший год | D82: 2 | F82: 2 | H82: 2 | J82: 0 | K82: На 2017 год | L82: 2 | N82: 2 | P82: 0 | Q82: Нет информации | R82: 2 | T82: 2 | V82: 2 | X82: 2 | Z82: 2 | AB82: 2 | AD82: 2 | AF82: 0 | AG82: Недостаточно прав для просмотра этого файла | AH82: 0 | AI82: на 2017 год | AJ82: 0 | AK82: Нет информации | AL82: 2 | AN82: 2 | AP82: 2 | AR82: 2 | AT82: 2 | AV82: 2 | AX82: 0 | AY82: На 2017 год | AZ82: 0 | BA82: прошлый год | BB82: 2 | BD82: 2
A83: Сведения об образовательной организации | B83: Финансово-хозяйственная деятельность | C83: Поступление и расходование финансовых и материальных средств по итогам финансового года | D83: 2 | F83: 2 | H83: 0 | I83: Нет информации. | J83: 2 | L83: 0 | M83: за 2016 год | N83: 0 | O83: Нет информации | P83: 0 | Q83: Нет информации | R83: 2 | T83: 2 | V83: 2 | X83: 2 | Z83: 2 | AB83: 2 | AD83: 2 | AF83: 0 | AG83: За 2014 год | AH83: 2 | AJ83: 0 | AK83: Ссылка не открывается | AL83: 2 | AN83: 2 | AP83: 2 | AR83: 2 | AT83: 2 | AV83: 2 | AX83: 1 | AY83: Размещено боком читать затруднительно | AZ83: 2 | BB83: 2 | BD83: 2
A84: Сведения об образовательной организации | B84: Финансово-хозяйственная деятельность | C84: Отчет о финансово-хозяйственной деятельности | D84: 0 | E84: за 2016 год | F84: 2 | H84: 2 | J84: 2 | L84: 0 | M84: за 2016 год | N84: 0 | O84: за 2015 год | P84: 0 | Q84: Нет информации | R84: 2 | T84: 0 | U84: За 2016 год | V84: 2 | X84: 2 | Z84: 2 | AB84: 2 | AD84: 0 | AE84: Нет информации | AF84: 0 | AG84: За 2014 год | AH84: 0 | AI84: за 2016 | AJ84: 0 | AK84: За 2015 год | AL84: 2 | AN84: 2 | AP84: 2 | AR84: 2 | AT84: 0 | AU84: 2016 г. | AV84: 2 | AX84: 2 | AZ84: 0 | BA84: нет информации | BB84: 2 | BD84: 2
A85: Сведения об образовательной организации | B85: Вакантные места для приема (перевода) | C85: Порядок приема | D85: 1 | E85: Размещен в другом подразделе | F85: 2 | H85: 1 | I85: Критерий не оформлен. Информация размещена в другом подразделе. | J85: 2 | L85: 2 | N85: 0 | O85: Ссылка не открывается | P85: 0 | Q85: Нет информации | R85: 2 | T85: 1 | U85: Критерий не оформлен. Информация размещена в другом подразделе. | V85: 1 | W85: Критерий не оформлен. Информация размещена в другом подразделе. | X85: 1 | Y85: Критерий не оформлен. Информация размещена в другом подразделе. | Z85: 2 | AB85: 2 | AD85: 2 | AF85: 0 | AG85: Нет информации | AH85: 2 | AJ85: 0 | AK85: Нет информации | AL85: 2 | AN85: 2 | AP85: 2 | AR85: 1 | AS85: информация не в том разделе | AT85: 1 | AU85: не в том разделе | AV85: 2 | AX85: 2 | AZ85: 1 | BA85: не в том разделе | BB85: 2 | BD85: 2
A86: Порядок поступления в организацию | B86: Вакантные места для приема (перевода) | C86: Перечень необходимых документов для зачисления в образовательную организацию | D86: 1 | E86: Размещен в другом подразделе | F86: 2 | H86: 1 | I86: Критерий не оформлен. Информация размещена в другом подразделе. | J86: 1 | K86: Критерий не оформлен. Информация размещена в другом подразделе. | L86: 2 | N86: 2 | P86: 0 | Q86: Нет информации | R86: 2 | T86: 1 | U86: Критерий не оформлен. Информация размещена в другом подразделе. | V86: 1 | W86: Критерий не оформлен. Информация размещена в другом подразделе. | X86: 1 | Y86: Критерий не оформлен. Информация размещена в другом подразделе. | Z86: 2 | AB86: 2 | AD86: 2 | AF86: 0 | AG86: Нет информации | AH86: 2 | AJ86: 1 | AK86: Расположен в другом подразделе | AL86: 2 | AN86: 2 | AP86: 2 | AR86: 1 | AS86: информация не в том разделе | AT86: 2 | AU86: не в том разделе | AV86: 2 | AX86: 2 | AZ86: 1 | BA86: не в том разделе | BB86: 2 | BD86: 2
A87: Порядок поступления в организацию | B87: Вакантные места для приема (перевода) | C87: Перечень документов для родителей, необходимых для ознакомления | D87: 1 | E87: Размещен в другом подразделе | F87: 2 | H87: 1 | I87: Критерий не оформлен. Информация размещена в другом подразделе. | J87: 1 | K87: Критерий не оформлен. Информация размещена в другом подразделе. | L87: 2 | N87: 2 | P87: 0 | Q87: Нет информации | R87: 2 | T87: 1 | U87: Критерий не оформлен. Информация размещена в другом подразделе. | V87: 1 | W87: Критерий не оформлен. Информация размещена в другом подразделе. | X87: 1 | Y87: Критерий не оформлен. Информация размещена в другом подразделе. | Z87: 2 | AB87: 2 | AD87: 2 | AF87: 0 | AG87: Нет информации | AH87: 2 | AJ87: 1 | AK87: Расположен в другом подразделе | AL87: 2 | AN87: 2 | AP87: 2 | AR87: 1 | AS87: информация не в том разделе | AT87: 2 | AU87: не в том разделе | AV87: 2 | AX87: 2 | AZ87: 1 | BA87: не в том разделе | BB87: 2 | BD87: 2
A88: Порядок поступления в организацию | B88: Вакантные места для приема (перевода) | C88: Количество вакантных мест для приема (перевода) по каждой образовательной программе, направлению подготовки | D88: 0 | E88: с 1 по 31 мая у вас прием на на второй и последующий годы обучения. Неужели все места заняты. | F88: 2 | H88: 0 | I88: Критерий не оформлен. Нет информации. | J88: 1 | K88: Критерий не оформлен. Информация размещена в другом подразделе. | L88: 2 | N88: 0 | O88: Нет информации | P88: 2 | R88: 2 | T88: 1 | U88: Критерий не оформлен. Информация размещена в другом подразделе. | V88: 0 | W88: Критерий не оформлен. Информация размещена в другом подразделе. Нет информации на следующий год. А прием документов с 1 марта (по положению) | X88: 1 | Y88: Странно с 1 мая объявлен прием в ОО а вакантных мест уже нет. | Z88: 2 | AB88: 2 | AD88: 2 | AF88: 0 | AG88: Нет информации | AH88: 2 | AJ88: 2 | AL88: 2 | AN88: 2 | AP88: 2 | AR88: 1 | AS88: информация не в том разделе | AT88: 2 | AU88: не в том разделе | AV88: 2 | AX88: 2 | AZ88: 0 | BA88: нет информации | BB88: 2 | BD88: 2
A89: Новости | B89: Новости | C89: Материалы о событиях текущей жизни школы, мероприятиях, проводимых в школе мероприятиях | D89: 2 | F89: 2 | H89: 2 | J89: 2 | L89: 2 | N89: 2 | P89: 2 | R89: 2 | T89: 2 | V89: 2 | X89: 2 | Z89: 2 | AB89: 2 | AD89: 2 | AF89: 2 | AH89: 2 | AJ89: 2 | AL89: 2 | AN89: 2 | AP89: 2 | AR89: 2 | AT89: 2 | AV89: 2 | AX89: 2 | AZ89: 2 | BB89: 2 | BD89: 2
A90: Организация учебно-воспитательного процесса | B90: Организация учебно-воспитательного процесса | C90: Учебный план | D90: 2 | F90: 2 | H90: 2 | J90: 2 | L90: 2 | N90: 0 | O90: 2016-2017 | P90: 2 | R90: 2 | T90: 2 | V90: 2 | X90: 2 | Z90: 2 | AB90: 0 | AC90: Страница не найдена | AD90: 2 | AF90: 0 | AG90: на 2016-2017 | AH90: 2 | AJ90: 0 | AK90: Нет информации | AL90: 2 | AN90: 2 | AP90: 0 | AQ90: на прошлый год | AR90: 2 | AT90: 1 | AU90: прошлый год | AV90: 2 | AX90: 1 | AY90: Размещена таблица без заголовка | AZ90: 1 | BA90: не в том разделе | BB90: 2 | BD90: 2
A91: Организация учебно-воспитательного процесса | B91: Организация учебно-воспитательного процесса | C91: Расписание занятий и работы кружков, планы работы, объявления | D91: 2 | F91: 2 | H91: 2 | J91: 2 | L91: 1 | M91: Скан очень плохого качества | N91: 2 | P91: 2 | R91: 2 | T91: 2 | V91: 2 | X91: 2 | Z91: 2 | AB91: 0 | AC91: Страница не найдена | AD91: 2 | AF91: 0 | AG91: на 2016-2017 | AH91: 2 | AJ91: 2 | AL91: 2 | AN91: 2 | AP91: 2 | AR91: 2 | AT91: 2 | AV91: 2 | AX91: 2 | AZ91: 2 | BB91: 2 | BD91: 2
A92: Достижения | B92: Достижения | C92: Материалы о достижениях учащихся, педагогических работников | D92: 2 | F92: 2 | H92: 2 | J92: 1 | K92: Нет данных за текущий учебный год | L92: 2 | N92: 2 | P92: 2 | R92: 2 | T92: 2 | V92: 1 | W92: Последняя информация за июнь 2017 - прошел почти год | X92: 2 | Z92: 2 | AB92: 2 | AD92: 0 | AE92: Нет информации | AF92: 2 | AH92: 2 | AJ92: 2 | AL92: 2 | AN92: 2 | AP92: 2 | AR92: 2 | AT92: 2 | AV92: 2 | AX92: 2 | AZ92: 2 | BB92: 2 | BD92: 2
A93: Программа развития | B93: Программа развития | C93: Программа, промежуточный и ежегодный анализ результатов реализации Программы | D93: 2 | F93: 2 | H93: 2 | J93: 2 | L93: 1 | M93: Нет анализа результатов реализации программы | N93: 2 | O93: на 2013-2016 гг | P93: 1 | Q93: Нет анализа | R93: 2 | T93: 2 | V93: 2 | X93: 1 | Y93: Нет анализа программы развития | Z93: 2 | AB93: 2 | AD93: 1 | AE93: Разместите более полную информацию | AF93: 0 | AG93: на 2016-2017 | AH93: 0 | AI93: Размещена образовательная программа | AJ93: 2 | AL93: 2 | AN93: 2 | AP93: 1 | AQ93: устарела | AR93: 2 | AT93: 1 | AU93: устарела | AV93: 2 | AX93: 0 | AY93: Нет критерия | AZ93: 2 | BB93: 1 | BC93: нет анализа результатов | BD93: 2
A94: Воспитательная работа | B94: Воспитательная работа | C94: Календарный план | D94: 2 | E94: Нет реквизитов утверждения | F94: 2 | H94: 2 | J94: 2 | K94: В заголовке указать наименование ОО | L94: 2 | N94: 0 | O94: Нет информации | P94: 2 | R94: 2 | T94: 2 | V94: 2 | X94: 2 | Z94: 2 | AB94: 2 | AD94: 2 | AF94: 0 | AG94: на лето 2017 | AH94: 1 | AI94: Размещены различные планы, но только не план воспитательной работы | AJ94: 2 | AL94: 2 | AN94: 2 | AP94: 0 | AQ94: 2017 год | AR94: 2 | AT94: 2 | AV94: 2 | AX94: 1 | AY94: Размещен календарный план Городских, краевых, Всероссийских и международных соревнований на 2017 год. | AZ94: 2 | BB94: 2 | BD94: 2
A95: Воспитательная работа | B95: Воспитательная работа | C95: План мероприятий на текущий учебный год, новости, статьи и сценарии о проведенных культурно-досуговых и спортивно-массовых мероприятиях | D95: 2 | F95: 2 | H95: 0 | I95: Критерий не оформлен. Нет информации. | J95: 2 | L95: 1 | M95: Много документов за прошлые года | N95: 2 | P95: 2 | R95: 2 | T95: 2 | V95: 2 | X95: 2 | Z95: 2 | AA95: Разместите планы конкретных мероприятий | AB95: 2 | AD95: 2 | AF95: 1 | AG95: За прошлые годы | AH95: 2 | AJ95: 2 | AL95: 2 | AN95: 2 | AP95: 1 | AQ95: 2017 год | AR95: 2 | AT95: 1 | AU95: прошлый год | AV95: 2 | AX95: 2 | AZ95: 2 | BB95: 1 | BC95: нет плана | BD95: 2
A96: Наш профсоюз | B96: Наш профсоюз | C96: Новости профсоюзного комитета, состав профсоюзного комитета, документы первичной профсоюзной организации, направления работы, это важно знать каждому, фотоотчет о мероприятиях, социальное партнерство, работа с ветеранами | D96: 2 | F96: 2 | H96: 2 | J96: 2 | L96: 2 | N96: 2 | P96: 2 | R96: 2 | T96: 2 | V96: 2 | X96: 2 | Z96: 2 | AB96: 2 | AD96: 2 | AF96: 2 | AH96: 2 | AJ96: 2 | AL96: 2 | AN96: 2 | AP96: 2 | AR96: 2 | AT96: 2 | AV96: 2 | AX96: 2 | AZ96: 2 | BB96: 2 | BD96: 2
A97: Карта сайта | B97: Карта сайта | C97: Содержание информации во всех разделах сайта и ссылки на все документы | D97: 2 | F97: 2 | H97: 2 | J97: 2 | L97: 2 | N97: 2 | P97: 2 | R97: 2 | T97: 2 | V97: 2 | X97: 2 | Z97: 2 | AB97: 2 | AD97: 0 | AE97: Нет информации | AF97: 2 | AH97: 2 | AJ97: 2 | AL97: 2 | AN97: 2 | AP97: 2 | AR97: 2 | AT97: 2 | AV97: 2 | AX97: 2 | AZ97: 2 | BB97: 2 | BD97: 2
A98: Статистика посещения | B98: Статистика посещения | C98: Подсчет посещаемости web-сайта | D98: 2 | F98: 2 | H98: 2 | J98: 2 | L98: 2 | N98: 2 | P98: 2 | R98: 2 | T98: 2 | V98: 2 | X98: 2 | Z98: 2 | AB98: 2 | AD98: 2 | AF98: 2 | AH98: 2 | AJ98: 2 | AL98: 2 | AN98: 2 | AP98: 2 | AR98: 2 | AT98: 2 | AV98: 2 | AX98: 2 | AZ98: 2 | BB98: 2 | BD98: 2
C99: Сумма баллов | D99: =SUM(D4:D98) -> 177 | F99: =SUM(F4:F98) -> 190 | H99: =SUM(H4:H98) -> 145 | J99: 161 | L99: 158 | N99: 109 | P99: 140 | R99: 173 | T99: 167 | V99: 159 | X99: 159 | Z99: 177 | AB99: 144 | AD99: 142 | AF99: 117 | AH99: 119 | AJ99: 128 | AL99: =SUM(AL4:AL98) -> 184 | AN99: =SUM(AN4:AN98) -> 189 | AP99: 160 | AR99: 164 | AT99: 150 | AV99: 188 | AX99: 159 | AZ99: =SUM(AZ4:AZ98) -> 143 | BB99: 179 | BD99: 185
C100: Процент наполняемости | D100: =SUM(D102,D104) -> 0.9578947368 | F100: =SUM(F102,F104) -> 1 | H100: =SUM(H102,H104) -> 0.8315789474 | J100: 0.9052631579 | L100: 0.8736842105 | N100: 0.6421052632 | P100: 0.7684210526 | R100: 0.9473684211 | T100: 0.9052631579 | V100: 0.8842105263 | X100: 0.8947368421 | Z100: 0.9578947368 | AB100: 0.7894736842 | AD100: 0.8105263158 | AF100: 0.6947368421 | AH100: 0.6736842105 | AJ100: 0.7157894737 | AL100: =SUM(AL102,AL104) -> 0.9684210526 | AN100: =SUM(AN102,AN104) -> 1 | AP100: 0.8631578947 | AR100: 0.9157894737 | AT100: 0.8210526316 | AV100: 0.9894736842 | AX100: 0.9263157895 | AZ100: =SUM(AZ102,AZ104) -> 0.7789473684 | BB100: 0.9578947368 | BD100: 1
C101: Обновленная информация | D101: =COUNTIF(D4:D98,2) -> 86 | F101: =COUNTIF(F4:F98,2) -> 95 | H101: 66 | J101: 75 | L101: 75 | N101: 48 | P101: 67 | R101: 83 | T101: 81 | V101: 75 | X101: 74 | Z101: 86 | AB101: 69 | AD101: 65 | AF101: 51 | AH101: 55 | AJ101: 60 | AL101: =COUNTIF(AL4:AL98,2) -> 92 | AN101: =COUNTIF(AN4:AN98,2) -> 94 | AP101: 78 | AR101: 77 | AT101: 72 | AV101: 94 | AX101: 71 | AZ101: =COUNTIF(AZ4:AZ98,2) -> 69 | BB101: 88 | BD101: 90
C102: Обновленная информация, % | D102: =D101*100%/D107 -> 0.9052631579 | F102: =F101*100%/F107 -> 1 | H102: =H101*100%/H107 -> 0.6947368421 | J102: 0.7894736842 | L102: 0.7894736842 | N102: 0.5052631579 | P102: 0.7052631579 | R102: 0.8736842105 | T102: 0.8526315789 | V102: 0.7894736842 | X102: 0.7789473684 | Z102: 0.9052631579 | AB102: 0.7263157895 | AD102: 0.6842105263 | AF102: 0.5368421053 | AH102: 0.5789473684 | AJ102: 0.6315789474 | AL102: =AL101*100%/AL107 -> 0.9684210526 | AN102: =AN101*100%/AN107 -> 0.9894736842 | AP102: 0.8210526316 | AR102: 0.8105263158 | AT102: 0.7578947368 | AV102: 0.9894736842 | AX102: 0.7473684211 | AZ102: =AZ101*100%/AZ107 -> 0.7263157895 | BB102: 0.9263157895 | BD102: 0.9473684211
C103: Неполная информация | D103: =COUNTIF(D4:D98,1) -> 5 | F103: 0 | H103: 13 | J103: 11 | L103: 8 | N103: 13 | P103: 6 | R103: 7 | T103: 5 | V103: 9 | X103: 11 | Z103: 5 | AB103: 6 | AD103: 12 | AF103: 15 | AH103: 9 | AJ103: 8 | AL103: =COUNTIF(AL4:AL98,1) -> 0 | AN103: =COUNTIF(AN4:AN98,1) -> 1 | AP103: 4 | AR103: 10 | AT103: 6 | AV103: 0 | AX103: 17 | AZ103: =COUNTIF(AZ4:AZ98,1) -> 5 | BB103: 3 | BD103: 5
C104: Неполная информация,% | D104: =D103*100%/D107 -> 0.05263157895 | F104: =F103*100%/F107 -> 0 | H104: 0.1368421053 | J104: 0.1157894737 | L104: 0.08421052632 | N104: 0.1368421053 | P104: 0.06315789474 | R104: 0.07368421053 | T104: 0.05263157895 | V104: 0.09473684211 | X104: 0.1157894737 | Z104: 0.05263157895 | AB104: 0.06315789474 | AD104: 0.1263157895 | AF104: 0.1578947368 | AH104: 0.09473684211 | AJ104: 0.08421052632 | AL104: =AL103*100%/AL107 -> 0 | AN104: =AN103*100%/AN107 -> 0.01052631579 | AP104: 0.04210526316 | AR104: 0.1052631579 | AT104: 0.06315789474 | AV104: 0 | AX104: 0.1789473684 | AZ104: =AZ103*100%/AZ107 -> 0.05263157895 | BB104: 0.03157894737 | BD104: 0.05263157895
C105: Информация отсутствует | D105: =COUNTIF(D4:D98,0) -> 4 | F105: =COUNTIF(F4:F98,0) -> 0 | H105: 16 | J105: 9 | L105: 12 | N105: 34 | P105: 22 | R105: 5 | T105: 9 | V105: 11 | X105: 10 | Z105: 4 | AB105: 20 | AD105: 18 | AF105: 29 | AH105: 31 | AJ105: 27 | AL105: =COUNTIF(AL4:AL98,0) -> 3 | AN105: =COUNTIF(AN4:AN98,0) -> 0 | AP105: 13 | AR105: 8 | AT105: 17 | AV105: 1 | AX105: 7 | AZ105: =COUNTIF(AZ4:AZ98,0) -> 21 | BB105: 4 | BD105: 0
C106: Информация отсутствует, % | D106: =D105*100%/D107 -> 0.04210526316 | F106: =F105*100%/F107 -> 0 | H106: =H105*100%/H107 -> 0.1684210526 | J106: 0.09473684211 | N106: 0.3578947368 | P106: 0.2315789474 | R106: 0.05263157895 | T106: 0.09473684211 | V106: 0.1157894737 | X106: 0.1052631579 | Z106: 0.04210526316 | AB106: 0.2105263158 | AD106: 0.1894736842 | AF106: 0.3052631579 | AH106: 0.3263157895 | AJ106: 0.2842105263 | AL106: =AL105*100%/AL107 -> 0.03157894737 | AN106: =AN105*100%/AN107 -> 0 | AP106: 0.1368421053 | AR106: 0.08421052632 | AT106: 0.1789473684 | AV106: 0.01052631579 | AX106: 0.07368421053 | AZ106: =AZ105*100%/AZ107 -> 0.2210526316 | BB106: 0.04210526316 | BD106: 0
C107: Количество критериев | D107: =D101+D103+D105 -> 95 | F107: =F101+F103+F105 -> 95 | H107: =H101+H103+H105 -> 95 | J107: =J101+J103+J105 -> 95 | L107: =L101+L103+L105 -> 95 | N107: 95 | P107: 95 | R107: 95 | T107: 95 | V107: 95 | X107: 95 | Z107: 95 | AB107: 95 | AD107: 95 | AF107: 95 | AH107: 95 | AJ107: 95 | AL107: =AL101+AL103+AL105 -> 95 | AN107: =AN101+AN103+AN105 -> 95 | AP107: 95 | AR107: 95 | AT107: 95 | AV107: 95 | AX107: 95 | AZ107: =AZ101+AZ103+AZ105 -> 95 | BB107: 95 | BD107: 95
